bitfinex-derivatives/quotes_SOLF0:USTF0_20260202
["timestamp","ask_amount","ask_price","bid_price","bid_amount"]
[1770004592243,139.7143,100.31,100.21,65.99891193]
[1770004592943,139.7281,100.3,100.21,65.99891193]
[1770004593144,139.714,100.31,100.21,65.99891193]
[1770004593342,139.7565,100.28,100.16,65.98852297]
[1770004593638,139.7708,100.27,100.17,65.98852297]
[1770004593947,139.7992,100.25,100.17,65.98852297]
[1770004594138,139.7708,100.27,100.17,65.98852297]
[1770004594333,46.74536364,100.28,100.18,65.98852297]
[1770004594536,538.0403,100.3,100.19,65.98852297]
[1770004594732,139.7424,100.29,100.19,65.98852297]
[1770004595241,538.0403,100.3,100.19,65.98852297]
[1770004595736,139.7417,100.29,100.19,65.98852297]
[1770004595938,139.6569,100.36,100.25,65.87332838]
[1770004596241,186.42246364,100.34,100.23,65.87332838]
[1770004596438,139.688,100.33,100.23,65.87332838]
[1770004596633,139.7201,100.31,100.23,65.87332838]
[1770004596834,398.28,100.31,100.23,65.87332838]
[1770004597035,139.7317,100.3,100.2,65.83124892]
[1770004597245,398.28,100.31,100.21,65.83124892]
[1770004597533,139.7328,100.3,100.21,65.83124892]
[1770004597934,139.7306,100.3,100.21,65.83124892]
[1770004598133,139.7418,100.29,100.21,65.83124892]
[1770004598332,139.7593,100.28,100.18,65.83143591]
[1770004598534,139.7732,100.27,100.19,5.32899589]
[1770004598838,139.7732,100.27,100.14,139.9402]
[1770004598839,139.856,100.21,100.14,65.83706175]
[1770004599043,398.22,100.21,100.14,65.83706175]
[1770004599246,139.8679,100.2,100.11,65.83706175]
[1770004599437,139.8964,100.18,100.07,65.83706175]
[1770004599742,139.8964,100.18,100.02,140.106]
[1770004599743,170.84673359,100.15,100.03,205.94176175]
[1770004599939,398.2,100.14,100.06,65.83706175]
[1770004600139,398.2,100.14,100.07,71.20277588]
[1770004600339,429.12423359,100.18,100.08,71.20277588]
[1770004600541,139.9127,100.17,100.09,5.36571413]
[1770004600741,139.9096,100.17,100.09,5.36571413]
[1770004600937,170.84533359,100.15,100.09,5.36571413]
[1770004601243,139.954,100.14,100.06,65.81845273]
[1770004601444,139.9655,100.13,100.07,5.40828409]
[1770004601639,139.9684,100.13,100.03,65.81845273]
[1770004601840,170.84273359,100.15,100.04,71.22716003]
[1770004602040,139.9548,100.14,100.05,5.4087073]
[1770004602237,139.9548,100.14,100.06,5.4087073]
[1770004602444,139.9385,100.15,100.07,5.4087073]
[1770004602739,139.9216,100.17,100.04,65.81845273]
[1770004602740,139.9104,100.17,100.08,71.23774566]
[1770004603041,8.9941,100.17,100.09,5.4087073]
[1770004603239,139.9254,100.16,100.1,5.4087073]
[1770004603435,547.1094,100.18,100.11,5.15409148]
[1770004603742,139.927,100.16,100.12,9.148e-05]
[1770004603945,139.9514,100.14,100.04,65.82903836]
[1770004604145,139.9792,100.12,100.04,65.82903836]
[1770004604344,170.85563359,100.14,100.04,65.82903836]
[1770004604345,30.90423359,100.14,100.04,65.82903836]
[1770004604845,179.85483359,100.14,100.04,65.82903836]
[1770004605045,179.85333359,100.14,100.04,65.82903836]
[1770004605447,30.90423359,100.14,100.04,65.82903836]
[1770004605643,30.90423359,100.11,100.03,65.82764254]
[1770004605844,398.38,100.11,100.03,65.82764254]
[1770004606943,139.967,100.13,100.03,65.82764254]
[1770004607148,398.4,100.13,100.03,65.82764254]
[1770004607343,139.9798,100.12,100.03,65.82764254]
[1770004607539,407.3981,100.13,100.03,65.82764254]
[1770004608344,139.9803,100.12,100.03,65.82764254]
[1770004608647,398.4,100.13,100.03,65.82764254]
[1770004608848,140.0239,100.09,100.03,65.82764254]
[1770004609155,179.93503359,100.09,99.978,65.79819415]
[1770004609452,30.90423359,100.09,99.99,65.79819415]
[1770004609651,30.90423359,100.09,99.989,140.1621]
[1770004609652,148.9989,100.11,99.999,65.79819415]
[1770004609849,140.0097,100.1,99.999,65.79819415]
[1770004610046,140.0212,100.09,99.999,65.79819415]
[1770004610447,139.9992,100.11,99.999,65.79819415]
[1770004610448,170.90343359,100.11,99.999,65.79819415]
[1770004610944,148.993,100.11,100.02,65.77739981]
[1770004611145,140.007,100.1,100.02,65.77739981]
[1770004611354,140.0262,100.09,100.02,65.77739981]
[1770004611556,139.9935,100.11,100.02,65.77739981]
[1770004611756,140.0084,100.1,100.02,65.77739981]
[1770004612460,139.9792,100.12,100.02,65.77739981]
[1770004612764,398.6,100.11,100.02,65.77739981]
[1770004612965,8.999,100.12,100.02,65.77739981]
[1770004613462,429.52423359,100.13,100.03,65.77562789]
[1770004614159,578.49163359,100.13,100.03,65.77562789]
[1770004614462,578.49163359,100.13,100.04,65.77562789]
[1770004614463,398.62,100.13,100.04,65.77562789]
[1770004616359,407.6575,100.14,100.04,65.77562789]
[1770004617163,538.6176,100.14,100.04,65.77562789]
[1770004617360,398.66,100.14,100.04,65.77562789]
[1770004617565,139.9655,100.13,100.04,65.77562789]
[1770004617762,398.66,100.14,100.04,140.0898]
[1770004617966,398.66,100.14,100.05,65.78076532]
[1770004618364,547.6083,100.14,100.05,65.78076532]
[1770004618564,139.965,100.13,100.05,65.78076532]
[1770004619060,148.9782,100.12,100.05,65.78076532]
[1770004619464,179.88243359,100.12,100.02,65.78183437]
[1770004619869,8.9999,100.11,100.02,65.78183437]
[1770004620271,140.0076,100.1,100.02,65.78183437]
[1770004620573,30.90423359,100.12,100.02,65.78183437]
[1770004620873,139.965,100.13,100.02,65.78183437]
[1770004620874,139.8831,100.19,100.08,65.77006555]
[1770004621071,139.8831,100.19,100.06,140.0602]
[1770004621072,139.8238,100.24,100.13,65.77006555]
[1770004621372,139.8255,100.23,100.13,65.77006555]
[1770004621569,398.7,100.24,100.14,65.77006555]
[1770004621874,538.5118,100.24,100.16,65.77006555]
[1770004622067,139.8584,100.21,100.13,65.77006555]
[1770004622276,139.9092,100.17,100.07,65.77006555]
[1770004622477,148.9043,100.17,100.07,65.77006555]
[1770004622673,139.9236,100.16,100.07,65.77006555]
[1770004622974,398.7,100.2,100.12,65.74767444]
[1770004623274,398.7,100.2,100.13,65.74767444]
[1770004623672,538.5693,100.2,100.13,65.74767444]
[1770004623872,398.7,100.2,100.13,65.74767444]
[1770004624375,139.8812,100.19,100.09,65.74767444]
[1770004624571,139.9516,100.14,100.05,65.74767444]
[1770004624779,538.625,100.13,100.05,65.74767444]
[1770004624976,139.9935,100.11,100.02,65.67594194]
[1770004625172,547.6232,100.13,100.02,65.67594194]
[1770004625371,170.83923359,100.16,100.05,65.67594194]
[1770004625574,398.64,100.15,100.06,65.67594194]
[1770004625772,538.5785,100.15,100.06,65.67594194]
[1770004625973,139.9521,100.14,100.06,65.67594194]
[1770004626166,139.9521,100.14,100.0,140.1333]
[1770004626379,140.0217,100.09,99.973,65.67594194]
[1770004626572,398.64,100.08,99.979,65.67594194]
[1770004626773,398.64,100.08,99.982,65.67218061]
[1770004627072,140.0631,100.06,99.982,65.67218061]
[1770004627272,538.6818,100.08,99.915,65.67218061]
[1770004627273,140.1052,100.03,99.915,65.67218061]
[1770004627474,140.2174,99.95,99.859,65.67218061]
[1770004627672,140.2845,99.902,99.825,65.67267667]
[1770004627872,140.2845,99.902,99.756,140.4893]
[1770004627873,140.2618,99.919,99.845,68.45216303]
[1770004628072,398.64,99.937,99.845,68.45216303]
[1770004628270,140.2596,99.92,99.845,2.77948636]
[1770004628478,398.66,99.945,99.857,65.67267667]
[1770004628673,538.885,99.945,99.857,65.67267667]
[1770004628872,398.66,99.945,99.857,65.67267667]
[1770004629174,140.2388,99.935,99.857,65.67267667]
[1770004629369,140.2534,99.925,99.857,65.67267667]
[1770004629573,398.66,99.945,99.857,65.67267667]
[1770004630076,140.2462,99.93,99.857,65.67267667]
[1770004630477,398.66,99.945,99.857,65.67267667]
[1770004630878,140.2266,99.944,99.857,65.67267667]
[1770004631077,398.66,99.945,99.857,65.67267667]
[1770004631274,140.2622,99.918,99.845,2.77948636]
[1770004631479,30.90423359,99.92,99.845,2.77948636]
[1770004632281,140.2803,99.905,99.845,2.77948636]
[1770004632484,140.303,99.889,99.793,65.60587282]
[1770004632782,140.303,99.889,99.643,421.943]
[1770004632783,30.90423359,99.89,99.811,65.59685587]
[1770004632978,30.90423359,99.92,99.814,65.59685587]
[1770004633184,399.02,99.935,99.835,65.59685587]
[1770004633380,140.2545,99.924,99.835,65.59685587]
[1770004633576,140.2711,99.912,99.835,65.59685587]
[1770004633781,30.90423359,99.89,99.803,65.59685587]
[1770004633980,140.2621,99.918,99.807,65.59685587]
[1770004634284,140.2675,99.915,99.807,65.59685587]
[1770004634484,140.2822,99.904,99.807,65.59685587]
[1770004634678,30.90423359,99.89,99.807,65.59685587]
[1770004635276,30.90423359,99.89,99.779,140.4573]
[1770004635277,140.2772,99.908,99.813,65.58172568]
[1770004635479,399.14,99.91,99.813,65.58172568]
[1770004635686,30.90423359,99.86,99.77,65.58172568]
[1770004635878,140.3067,99.887,99.776,65.58172568]
[1770004636078,30.90423359,99.89,99.786,65.58172568]
[1770004636281,140.2626,99.918,99.811,65.58172568]
[1770004636475,30.90423359,99.91,99.811,65.58172568]
[1770004636678,140.2928,99.896,99.811,65.58172568]
[1770004636886,399.16,99.909,99.816,65.56114255]
[1770004637187,399.16,99.909,99.824,140.3929]
[1770004637386,140.237,99.936,99.842,65.56114255]
[1770004637582,140.2466,99.929,99.842,65.56114255]
[1770004637786,140.2802,99.905,99.799,65.56114255]
[1770004637983,30.90423359,99.91,99.801,140.4259]
[1770004638189,30.90423359,99.91,99.82,65.56114255]
[1770004638490,30.90423359,99.91,99.822,65.56114255]
[1770004638788,140.2746,99.909,99.795,65.5030458]
[1770004639090,30.90423359,99.91,99.819,140.4002]
[1770004639291,399.32,99.931,99.831,65.5030458]
[1770004639990,140.2501,99.927,99.831,65.5030458]
[1770004640489,140.2556,99.923,99.831,65.5030458]
[1770004640686,30.90423359,99.88,99.772,65.51838849]
[1770004640886,30.90423359,99.88,99.737,140.5159]
[1770004640887,140.2747,99.909,99.803,65.51838849]
[1770004641086,140.2614,99.919,99.803,65.51838849]
[1770004641488,140.2903,99.898,99.803,65.51838849]
[1770004641792,140.2775,99.907,99.803,65.51838849]
[1770004641992,30.90423359,99.89,99.803,65.51838849]
[1770004642192,140.3197,99.877,99.803,65.51838849]
[1770004642689,30.90423359,99.86,99.803,65.51838849]
[1770004642892,140.2775,99.907,99.803,65.51838849]
[1770004642893,399.4,99.866,99.803,65.51838849]
[1770004643090,399.4,99.888,99.803,65.51838849]
[1770004643283,399.42,99.887,99.803,65.51838849]
[1770004643889,140.3208,99.877,99.77,65.49801684]
[1770004644085,30.90423359,99.86,99.772,65.49801684]
[1770004644394,140.3589,99.849,99.772,65.49801684]
[1770004644588,30.90423359,99.86,99.772,65.49801684]
[1770004644798,30.90423359,99.86,99.741,140.5108]
[1770004644799,30.90423359,99.89,99.776,140.4614]
[1770004644990,30.90423359,99.89,99.762,140.4809]
[1770004644991,140.3074,99.886,99.777,70.59437321]
[1770004645192,30.90423359,99.83,99.712,65.4869357]
[1770004645389,140.3457,99.859,99.711,140.552]
[1770004645390,140.356,99.852,99.727,65.4869357]
[1770004645591,399.48,99.857,99.747,65.4869357]
[1770004645887,539.7827,99.889,99.768,65.4869357]
[1770004646089,140.3216,99.876,99.77,65.4869357]
[1770004646291,9.0206,99.876,99.772,65.4869357]
[1770004646491,149.3419,99.876,99.774,65.4869357]
[1770004646691,140.3088,99.885,99.776,65.47542371]
[1770004646884,399.48,99.888,99.778,65.47542371]
[1770004647085,399.48,99.888,99.781,65.47542371]
[1770004647292,399.48,99.888,99.783,65.47542371]
[1770004647597,399.48,99.888,99.785,65.47542371]
[1770004647796,399.48,99.888,99.787,65.47542371]
[1770004647997,399.48,99.888,99.789,65.47542371]
[1770004648194,30.90423359,99.89,99.791,65.47542371]
[1770004648400,30.90423359,99.86,99.764,65.47542371]
[1770004648591,140.3072,99.886,99.767,65.47542371]
[1770004648796,399.58,99.889,99.79,65.44102115]
[1770004649095,399.58,99.889,99.792,65.44102115]
[1770004649293,140.3215,99.876,99.794,65.44102115]
[1770004649495,140.3133,99.882,99.794,65.44102115]
[1770004649696,399.6,99.881,99.794,65.44102115]
[1770004649896,140.3212,99.876,99.794,65.44102115]
[1770004650092,399.6,99.881,99.796,65.44102115]
[1770004650297,149.2952,99.907,99.798,65.44102115]
[1770004650492,140.3026,99.889,99.8,65.44102115]
[1770004650690,140.2774,99.907,99.736,140.5172]
[1770004650691,140.321,99.876,99.771,65.36003305]
[1770004650899,30.90423359,99.88,99.773,65.36003305]
[1770004651100,140.2785,99.907,99.791,65.36003305]
[1770004651296,140.3036,99.889,99.792,70.45378258]
[1770004651499,140.3036,99.889,99.794,65.36003305]
[1770004651695,140.3036,99.889,99.796,65.36003305]
[1770004651892,149.3231,99.889,99.796,65.36003305]
[1770004652291,140.3177,99.879,99.796,65.36003305]
[1770004652798,30.90423359,99.85,99.742,65.35115617]
[1770004653003,399.64,99.849,99.754,65.35115617]
[1770004653203,399.64,99.849,99.757,65.35115617]
[1770004653506,399.64,99.876,99.778,65.35115617]
[1770004653705,399.64,99.876,99.78,65.35115617]
[1770004654002,140.326,99.873,99.782,65.35115617]
[1770004654203,399.64,99.876,99.784,65.35115617]
[1770004654403,399.64,99.876,99.786,65.35115617]
[1770004654597,399.64,99.876,99.788,65.35115617]
[1770004654803,399.64,99.876,99.79,65.33855651]
[1770004655006,149.3443,99.875,99.792,65.33855651]
[1770004655301,399.64,99.876,99.792,65.33855651]
[1770004655502,399.64,99.876,99.794,65.33855651]
[1770004656300,399.68,99.881,99.794,65.33855651]
[1770004657805,140.342,99.861,99.766,65.32962068]
[1770004658002,140.3301,99.87,99.768,65.32962068]
[1770004658208,140.3596,99.849,99.734,65.32962068]
[1770004658499,140.449,99.785,99.706,65.32962068]
[1770004658701,149.5092,99.764,99.679,65.33274196]
[1770004658906,30.90423359,99.76,99.651,65.33274196]
[1770004659102,30.90423359,99.76,99.655,65.33274196]
[1770004659295,30.90423359,99.76,99.671,65.33274196]
[1770004659495,30.90423359,99.76,99.675,65.33274196]
[1770004659702,399.7,99.784,99.677,65.33274196]
[1770004659906,140.4599,99.778,99.679,65.33274196]
[1770004660108,140.4599,99.778,99.681,65.33274196]
[1770004660404,399.74,99.777,99.682,70.43932301]
[1770004660605,399.74,99.777,99.684,65.33274196]
[1770004660800,399.74,99.777,99.686,65.33545685]
[1770004660997,399.74,99.777,99.688,65.33545685]
[1770004661197,399.74,99.777,99.69,65.33545685]
[1770004661397,399.74,99.777,99.691,70.4420379]
[1770004661599,399.74,99.777,99.693,65.33545685]
[1770004661806,399.74,99.777,99.695,65.33545685]
[1770004661997,399.74,99.777,99.696,70.4420379]
[1770004662196,399.74,99.777,99.696,65.33545685]
[1770004662802,399.74,99.777,99.697,5.10982477]
[1770004663098,399.74,99.777,99.699,65.33183795]
[1770004663305,46.82980035,99.82,99.725,65.33183795]
[1770004663504,399.86,99.845,99.742,65.33183795]
[1770004663705,399.86,99.845,99.747,65.33183795]
[1770004663905,140.3795,99.835,99.747,65.33183795]
[1770004664101,140.4005,99.82,99.747,65.33183795]
[1770004664307,140.3841,99.832,99.747,65.33183795]
[1770004664499,9.0258,99.819,99.747,65.33183795]
[1770004665611,140.4038,99.817,99.718,65.32952682]
[1770004665812,46.82980035,99.82,99.719,70.44668208]
[1770004666108,46.82980035,99.82,99.721,65.32952682]
[1770004666410,46.82980035,99.82,99.723,65.32952682]
[1770004666606,46.82980035,99.82,99.725,65.32952682]
[1770004666904,140.3816,99.833,99.727,65.32804819]
[1770004667113,399.86,99.845,99.738,65.32804819]
[1770004667411,399.9,99.844,99.748,65.32804819]
[1770004667705,399.9,99.873,99.772,65.32804819]
[1770004667907,46.82980035,99.91,99.804,65.32804819]
[1770004668113,46.82980035,99.91,99.795,140.4343]
[1770004668114,9.0192,99.892,99.806,65.32804819]
[1770004668313,399.9,99.909,99.808,65.32804819]
[1770004668606,46.82980035,99.91,99.784,140.4498]
[1770004668607,140.1866,99.972,99.849,65.3315945]
[1770004668814,140.261,99.919,99.85,5.11715526]
[1770004669109,140.2227,99.946,99.851,5.11715526]
[1770004669110,140.2697,99.913,99.851,5.11715526]
[1770004669311,140.256,99.923,99.852,5.11715526]
[1770004669508,140.269,99.913,99.853,5.11715526]
[1770004669809,46.82980035,99.88,99.787,65.3315945]
[1770004670106,46.82980035,99.91,99.805,65.3315945]
[1770004670313,540.1547,99.909,99.805,65.3315945]
[1770004670708,140.049,100.07,99.936,65.34917823]
[1770004670907,140.0912,100.04,99.902,65.34917823]
[1770004671113,186.93560035,100.03,99.902,65.34917823]
[1770004671305,399.88,100.04,99.923,65.34917823]
[1770004671505,140.1076,100.03,99.923,65.34917823]
[1770004671712,140.1718,99.983,99.866,65.34917823]
[1770004672212,140.1768,99.979,99.866,65.34917823]
[1770004672411,140.2079,99.957,99.866,65.34917823]
[1770004672808,399.82,99.978,99.87,65.33821082]
[1770004673013,539.9556,100.01,99.894,65.33821082]
[1770004673416,548.9641,100.01,99.894,65.33821082]
[1770004673618,140.157,99.993,99.894,65.33821082]
[1770004673811,140.2156,99.951,99.853,65.33821082]
[1770004674012,140.1204,100.02,99.91,65.33821082]
[1770004674211,140.1348,100.01,99.91,65.33821082]
[1770004674408,140.1522,99.997,99.87,46.82980035]
[1770004674713,140.1694,99.984,99.876,65.33821082]
[1770004674918,140.1786,99.978,99.876,65.33821082]
[1770004675120,399.74,99.983,99.876,65.33821082]
[1770004675516,399.74,99.983,99.886,65.32443386]
[1770004676619,9.0101,99.993,99.886,65.32443386]
[1770004677016,140.1588,99.992,99.886,65.32443386]
[1770004677222,140.1904,99.969,99.857,65.35314164]
[1770004677420,140.2082,99.957,99.857,65.35314164]
[1770004677615,399.64,99.956,99.857,65.35314164]
[1770004678025,140.2128,99.953,99.857,65.35314164]
[1770004678323,399.62,99.952,99.857,65.35314164]
[1770004678518,399.62,99.952,99.873,65.35314164]
[1770004678927,399.62,99.985,99.881,65.35049651]
[1770004679518,140.1723,99.982,99.881,65.35049651]
[1770004679719,140.1892,99.97,99.881,65.35049651]
[1770004680025,140.1752,99.98,99.881,65.35049651]
[1770004680626,140.2649,99.916,99.82,65.35049651]
[1770004680927,399.58,99.915,99.823,140.3949]
[1770004681115,399.58,99.915,99.823,149.4202]
[1770004681320,399.58,99.915,99.845,68.17082878]
[1770004681822,399.58,99.947,99.859,65.39134242]
[1770004682017,140.1498,99.998,99.892,65.39134242]
[1770004682218,140.1801,99.977,99.849,65.39134242]
[1770004682422,140.2409,99.933,99.85,65.39134242]
[1770004682624,399.56,99.932,99.823,65.39134242]
[1770004682930,399.56,99.932,99.856,65.37294063]
[1770004683426,399.56,99.932,99.828,65.37294063]
[1770004683918,399.56,99.932,99.846,65.37294063]
[1770004684118,399.56,99.932,99.857,65.37294063]
[1770004684322,140.1373,100.01,99.894,65.37294063]
[1770004684625,140.1498,99.998,99.896,65.37294063]
[1770004684927,140.166,99.987,99.896,65.37294063]
[1770004685128,140.1519,99.997,99.896,65.37294063]
[1770004685621,140.1672,99.986,99.896,65.37294063]
[1770004685929,140.1531,99.996,99.896,65.37294063]
[1770004686224,140.2039,99.96,99.869,65.44536387]
[1770004686424,140.1683,99.985,99.869,65.44536387]
[1770004686619,140.1526,99.996,99.885,65.44536387]
[1770004687018,399.56,100.0,99.885,65.44536387]
[1770004687219,140.1539,99.995,99.895,65.45817333]
[1770004687419,140.1539,99.995,99.852,140.3536]
[1770004687420,140.1823,99.975,99.865,65.45817333]
[1770004687724,9.0136,99.954,99.865,65.45817333]
[1770004687920,140.1823,99.975,99.865,65.45817333]
[1770004688229,9.0103,99.99,99.873,140.325]
[1770004688428,9.0103,99.99,99.882,65.45814728]
[1770004688824,149.1923,99.976,99.885,65.46059113]
[1770004689426,9.0105,99.988,99.885,65.46059113]
[1770004689625,140.1216,100.02,99.906,65.46059113]
[1770004689827,140.1216,100.02,99.905,140.2797]
[1770004689828,140.1343,100.01,99.913,65.46059113]
[1770004690027,9.009,100.01,99.913,65.46059113]
[1770004690223,539.6198,100.02,99.913,65.46059113]
[1770004690421,140.2137,99.953,99.851,65.46059113]
[1770004690724,399.5,99.986,99.89,65.44633912]
[1770004690924,399.5,99.986,99.896,65.44633912]
[1770004691325,140.171,99.983,99.896,65.44633912]
[1770004691720,399.5,99.986,99.896,65.44633912]
[1770004692325,399.46,99.991,99.896,65.44633912]
[1770004693327,140.1831,99.975,99.896,65.44633912]
[1770004693528,140.1918,99.968,99.896,65.44633912]
[1770004694033,149.2241,99.955,99.851,65.43243291]
[1770004694534,140.2272,99.943,99.851,65.43243291]
[1770004694833,140.2326,99.939,99.851,65.43243291]
[1770004695024,140.2105,99.955,99.851,65.43243291]
[1770004695727,140.2288,99.942,99.851,65.43243291]
[1770004695929,140.2507,99.926,99.851,65.43243291]
[1770004696133,399.44,99.925,99.851,65.43243291]
[1770004696334,140.2547,99.924,99.851,65.43243291]
[1770004696635,140.2869,99.901,99.824,65.36727315]
[1770004697034,149.3208,99.89,99.845,8.636e-05]
[1770004697435,140.2875,99.9,99.845,8.636e-05]
[1770004697436,140.3474,99.858,99.845,8.636e-05]
[1770004697736,399.44,99.857,99.845,8.636e-05]
[1770004699237,399.5,99.884,99.845,8.636e-05]
[1770004699927,399.5,99.903,99.845,8.636e-05]
[1770004700435,140.3169,99.879,99.845,8.636e-05]
[1770004700632,140.3041,99.888,99.845,8.636e-05]
[1770004700936,140.3069,99.886,99.845,8.636e-05]
[1770004701135,149.3297,99.884,99.845,8.636e-05]
[1770004701537,9.0199,99.884,99.845,8.636e-05]
[1770004702530,399.56,99.883,99.845,8.636e-05]
[1770004703338,9.0203,99.88,99.845,8.636e-05]
[1770004703733,399.56,99.882,99.845,8.636e-05]
[1770004704440,399.58,99.908,99.845,8.636e-05]
[1770004704641,149.2993,99.905,99.845,8.636e-05]
[1770004705236,399.6,99.933,99.845,65.33276633]
[1770004705440,140.2432,99.932,99.845,65.33276633]
[1770004705738,9.0158,99.929,99.845,65.33276633]
[1770004705940,140.2533,99.925,99.845,65.33276633]
[1770004706136,399.6,99.933,99.845,65.33276633]
[1770004706439,140.2704,99.912,99.845,65.33276633]
[1770004706638,399.6,99.933,99.845,65.33276633]
[1770004706834,399.6,99.933,99.847,65.33047609]
[1770004707036,399.6,99.933,99.854,65.33047609]
[1770004707634,9.0139,99.95,99.854,65.33047609]
[1770004707836,140.223,99.946,99.854,65.33047609]
[1770004708646,140.2426,99.932,99.854,65.33047609]
[1770004708838,140.2285,99.942,99.854,65.33047609]
[1770004709449,12.50884001,99.96,99.854,65.33047609]
[1770004709647,140.2103,99.955,99.854,65.33047609]
[1770004709943,140.2589,99.921,99.845,8.636e-05]
[1770004710149,12.50884001,99.9,99.845,8.636e-05]
[1770004710447,12.50884001,99.95,99.845,8.636e-05]
[1770004710640,399.56,99.96,99.845,8.636e-05]
[1770004710849,140.1861,99.973,99.86,65.30933048]
[1770004711141,140.176,99.98,99.874,65.30933048]
[1770004711346,140.1772,99.979,99.874,65.30933048]
[1770004712048,399.56,99.991,99.874,65.30933048]
[1770004712049,149.193,99.976,99.874,65.30933048]
[1770004712348,399.56,99.991,99.874,65.30933048]
[1770004712349,140.2102,99.955,99.874,65.30933048]
[1770004712850,140.2321,99.94,99.874,65.30933048]
[1770004713046,140.247,99.929,99.847,65.34904721]
[1770004713247,140.2451,99.93,99.847,65.34904721]
[1770004713543,399.56,99.939,99.847,65.34904721]
[1770004714148,399.56,99.939,99.853,65.34904721]
[1770004714349,399.54,99.964,99.87,65.34904721]
[1770004714549,399.54,99.964,99.884,65.34904721]
[1770004715146,9.013,99.96,99.884,65.34904721]
[1770004715350,399.54,99.964,99.884,65.34904721]
[1770004715755,399.54,99.964,99.886,65.34215949]
[1770004717050,140.2009,99.962,99.886,65.34215949]
[1770004717245,140.2133,99.953,99.859,65.34012809]
[1770004717646,140.2009,99.962,99.859,65.34012809]
[1770004717847,140.1547,99.995,99.888,65.34012197]
[1770004718156,539.6547,99.995,99.888,65.34012197]
[1770004718543,9.0105,99.989,99.892,9.0191]
[1770004718749,399.5,99.995,99.89,140.3]
[1770004718750,399.5,99.995,99.905,65.33898741]
[1770004719253,140.1336,100.01,99.905,65.33898741]
[1770004719553,399.48,99.995,99.905,65.33898741]
[1770004720052,140.0952,100.04,99.931,65.33898741]
[1770004720252,140.1191,100.02,99.931,65.33898741]
[1770004720459,9.0089,100.01,99.931,65.33898741]
[1770004720954,161.65424001,100.01,99.896,65.34169652]
[1770004721353,140.1771,99.979,99.896,65.34169652]
[1770004721551,140.182,99.975,99.896,65.34169652]
[1770004721855,12.50884001,99.97,99.896,65.34169652]
[1770004722056,9.0122,99.969,99.896,65.34169652]
[1770004722559,12.49987232,99.98,99.896,65.34169652]
[1770004722758,9.0109,99.983,99.896,65.34169652]
[1770004722957,12.49987232,99.99,99.896,65.34169652]
[1770004723656,9.0107,99.986,99.896,65.34169652]
[1770004723856,12.49987232,99.96,99.896,65.34169652]
[1770004724661,12.49987232,99.94,99.861,65.32443282]
[1770004725064,12.49987232,99.94,99.866,65.32443282]
[1770004725459,12.49987232,99.96,99.873,65.32443282]
[1770004726160,12.49987232,99.96,99.88,65.32443282]
[1770004726761,12.49987232,99.96,99.883,65.322952]
[1770004727360,12.49987232,99.96,99.888,65.32295474]
[1770004728864,12.49987232,99.96,99.893,65.3400899]
[1770004731459,12.49987232,99.98,99.895,65.34051127]
[1770004732164,12.49987232,99.98,99.897,65.34051127]
[1770004732765,12.49987232,99.98,99.887,140.305]
[1770004732766,12.49987232,99.98,99.903,65.46772686]
[1770004733267,12.49987232,99.98,99.906,65.46772686]
[1770004734866,399.36,99.996,99.92,65.50794966]
[1770004735066,12.49987232,99.98,99.92,65.50794966]
[1770004735366,12.49987232,99.96,99.894,65.50794966]
[1770004737169,12.49987232,99.94,99.871,65.52676875]
[1770004737870,12.49987232,99.92,99.822,65.52676875]
[1770004738267,12.49987232,99.92,99.823,65.52676875]
[1770004738570,399.34,99.931,99.847,65.52676875]
[1770004738768,12.49987232,99.94,99.851,65.52296353]
[1770004739163,399.34,99.954,99.856,140.3481]
[1770004739369,399.34,99.954,99.86,74.54486353]
[1770004739674,12.49987232,99.96,99.872,65.52296353]
[1770004739871,12.49987232,99.96,99.876,65.52296353]
[1770004740273,140.2052,99.959,99.876,65.52296353]
[1770004740468,12.49987232,99.94,99.876,65.52296353]
[1770004740674,12.49987232,99.96,99.876,65.52296353]
[1770004740875,12.49987232,99.99,99.882,65.46036557]
[1770004741179,12.49987232,99.99,99.904,65.46036557]
[1770004741580,140.1701,99.984,99.904,65.46036557]
[1770004741781,12.49987232,99.97,99.864,65.46036557]